fUST/lending_fUST_20240416
["ID","MTS","AMOUNT","RATE_DAILY","PERIOD"]
[322704201,1713227440887,-151.0,0.000339,2]
[322704203,1713227440896,-151.0,0.000339,2]
[322704205,1713227440905,-254.280758,0.000339,2]
[322704207,1713227440914,-151.0,0.000339,2]
[322704209,1713227440923,-313.977112,0.000339,2]
[322704211,1713227440932,-313.977112,0.000339,2]
[322704213,1713227440941,-539.563969,0.000339,2]
[322704215,1713227440950,-539.563969,0.000339,2]
[322704217,1713227440960,-168.12852,0.000339,2]
[322704219,1713227440969,-168.12852,0.000339,2]
[322704221,1713227440978,-151.0,0.000339,2]
[322704223,1713227440987,-151.0,0.000339,2]
[322704225,1713227440996,-500.0,0.00033972,7]
[322704227,1713227441005,-151.0,0.00033972,2]
[322704229,1713227441015,-272.816358,0.00033972,2]
[322704231,1713227441024,-151.0,0.00033972,2]
[322704233,1713227441033,-151.0,0.00033972,2]
[322704235,1713227441042,-823.0,0.00033976,2]
[322704237,1713227441051,-465.39337493,0.00034,4]
[322704239,1713227441061,-453.55038224,0.00034093,2]
[322704241,1713227441070,-150.0,0.00034149,2]
[322704243,1713227441079,-150.0,0.000342,2]
[322704245,1713227441088,-1863.797743,0.00034245,2]
[322704247,1713227441097,-1863.797743,0.00034245,2]
[322704249,1713227441106,-500.0,0.00034246,7]
[322704251,1713227441115,-50027.61838313,0.000344,2]
[322704253,1713227441124,-151.0,0.000344,2]
[322704255,1713227441133,-313.977112,0.000344,2]
[322704257,1713227441142,-313.977112,0.000344,2]
[322704259,1713227441151,-539.563969,0.000344,2]
[322704261,1713227441161,-539.563969,0.000344,2]
[322704262,1713227441170,-168.12852,0.000344,2]
[322704264,1713227441179,-168.12852,0.000344,2]
[322704266,1713227441188,-151.0,0.000344,2]
[322704268,1713227441199,-151.0,0.000344,2]
[322704270,1713227441209,-1741.93196748,0.000344,2]
[322705162,1713227450229,500.0,0.00038722,40]
[322705314,1713227451723,500.0,0.00038722,40]
[322705449,1713227454772,500.0,0.00038722,40]
[322705450,1713227454918,500.0,0.00038722,40]
[322705463,1713227456934,321.12,0.00038722,40]
[322705464,1713227457256,500.0,0.00038722,40]
[322705465,1713227457474,500.0,0.00038722,40]
[322705469,1713227457757,500.0,0.00038722,40]
[322705471,1713227458055,500.0,0.00038722,40]
[322705472,1713227458155,500.0,0.00038722,40]
[322705473,1713227458334,629.32,0.00038722,40]
[322705474,1713227458985,155.36,0.00038722,40]
[322705476,1713227468331,500.0,0.00038722,40]
[322705477,1713227468596,500.0,0.00038722,40]
[322705478,1713227468877,500.0,0.00038722,40]
[322705479,1713227469159,265.62,0.00038722,40]
[322705481,1713227473454,500.0,0.00038722,40]
[322705484,1713227481428,512.8,0.00038722,40]
[322705486,1713227485761,500.0,0.00038722,40]
[322705488,1713227489904,500.0,0.00038722,40]
[322705489,1713227490164,500.0,0.00038722,40]
[322705490,1713227490452,500.0,0.00038722,40]
[322705491,1713227490830,401.68519674,0.00038722,40]
[322705493,1713227497851,500.0,0.00038722,40]
[322705498,1713227510448,500.0,0.00038722,40]
[322705499,1713227510727,500.0,0.00038722,40]
[322705500,1713227511001,500.0,0.00038722,40]
[322705501,1713227511273,214.91,0.00038722,40]
[322705504,1713227529774,500.0,0.00038722,40]
[322705505,1713227530040,236.71,0.00038722,40]
[322705507,1713227531812,566.27,0.00038722,40]
[322705510,1713227552566,500.0,0.00038722,40]
[322705511,1713227556961,500.0,0.00038722,40]
[322705512,1713227574977,500.0,0.00038722,40]
[322705514,1713227591287,500.0,0.00038722,40]
[322705515,1713227672582,500.0,0.00038722,40]
[322705516,1713227693830,10000.0,0.000252,10]
[322705517,1713227705393,500.0,0.00038688,40]
[322705518,1713227705667,500.0,0.00038688,40]
[322705519,1713227715740,500.0,0.00038688,40]
[322705520,1713227738228,500.0,0.00038688,40]
[322705521,1713227740568,500.0,0.00038688,40]
[322705522,1713227740873,500.0,0.00038688,40]
[322705523,1713227750066,500.0,0.00038688,40]
[322705524,1713227750437,500.0,0.00038688,40]
[322705525,1713227769114,500.0,0.00038688,40]
[322705529,1713227880612,500.0,0.00038688,40]
[322705530,1713227894619,309.56660676,0.00038688,40]
[322705531,1713227898574,500.0,0.00038688,40]
[322705532,1713227898875,520.69,0.00038688,40]
[322705533,1713227926863,500.0,0.00038688,40]
[322705534,1713227927121,153.29,0.00038688,40]
[322705535,1713227934814,641.38,0.00038688,40]
[322705548,1713227957645,547.13,0.00038688,40]
[322705549,1713228034800,500.0,0.00038689,40]
[322705550,1713228035116,500.0,0.00038689,40]
[322705551,1713228035405,500.0,0.00038689,40]
[322705552,1713228035670,584.96274854,0.00038689,40]
[322705553,1713228036923,500.0,0.00038689,40]
[322705554,1713228041027,151.67849867,0.00038689,40]
[322705561,1713228230365,500.0,0.00038689,40]
[322705563,1713228289094,500.0,0.00038701,40]
[322705564,1713228289350,500.0,0.00038701,40]
[322705565,1713228289631,500.0,0.00038701,40]
[322705621,1713228632184,-156.98200501,0.00026213,2]
[322705622,1713228632193,-173.46469174,0.00026214,2]
[322705650,1713228638198,-32.33184715,0.00026214,2]
[322705651,1713228638208,-598.1748045,0.00026226,2]
[322705652,1713228638256,-1497.85548406,0.00026226,2]
[322705653,1713228638266,-167.961231,0.00027397,2]
[322705654,1713228638275,-163.292237,0.00027397,2]
[322705655,1713228638284,-326.189373,0.00027397,2]
[322705656,1713228638294,-300.0,0.00029407,2]
[322705657,1713228638304,-300.0,0.00029407,2]
[322705658,1713228638313,-24900.0,0.00029408,2]
[322705659,1713228638322,-168.59339,0.00029961,2]
[322705660,1713228638331,-166.666666,0.0003032,2]
[322705661,1713228638340,-166.666666,0.00031147,2]
[322705662,1713228638349,-217.81749,0.00031336,2]
[322705663,1713228638358,-3000.0,0.000315,4]
[322705664,1713228638368,-420.0,0.00031714,2]
[322705665,1713228638377,-154.81422293,0.00031972,10]
[322705666,1713228638387,-166.666666,0.00031973,2]
[322705667,1713228638396,-191.09643603,0.00032,4]
[322705668,1713228638405,-223.432,0.00032314,2]
[322705669,1713228638419,-420.0,0.00032348,2]
[322705670,1713228638428,-168.779527,0.0003255,2]
[322705671,1713228638438,-166.666666,0.000328,2]
[322705672,1713228638447,-395.2998552,0.00032988,2]
[322705673,1713228638456,-163.292237,0.00033165,2]
[322705674,1713228638465,-326.189373,0.00033165,2]
[322705675,1713228638474,-6866.84560241,0.00033333,2]
[322705676,1713228638484,-205.0,0.0003338,6]
[322705677,1713228638493,-167.76886009,0.00033448,2]
[322705678,1713228638502,-166.666666,0.00033627,2]
[322705679,1713228638511,-153.0,0.0003381,2]
[322705680,1713228638520,-306.0,0.0003381,2]
[322705681,1713228638530,-1210.54750037,0.00033887,3]
[322705682,1713228638539,-465.39337493,0.00034,4]
[322705683,1713228638548,-620.50285657,0.00034103,2]
[322705684,1713228638557,-576.0,0.00034201,2]
[322705685,1713228638566,-1331.86827823,0.0003426,7]
[322705686,1713228638575,-404.21971349,0.00034398,2]
[322705687,1713228638584,-150.0,0.000344,2]
[322705688,1713228638593,-166.666666,0.00034453,2]
[322705689,1713228638601,-177.0,0.000345,8]
[322705690,1713228638610,-491.0,0.000345,2]
[322705691,1713228638619,-21260.63430785,0.00034555,10]
[322705692,1713228638628,-586.0,0.000346,2]
[322705693,1713228638637,-1000.0,0.000348,3]
[322705694,1713228638646,-2000.0,0.00034867,2]
[322705696,1713228638655,-181.42015292,0.00034895,2]
[322705698,1713228638667,-181.42015289,0.00034896,2]
[322705699,1713228638676,-181.42015289,0.00034898,2]
[322705700,1713228638684,-181.42015289,0.00034899,2]
[322705701,1713228638693,-181.42015289,0.000349,2]
[322705702,1713228638702,-1752.27812081,0.000349,2]
[322705704,1713228638711,-8831.42689856,0.00034959,5]
[322705706,1713228638720,-6784.85641917,0.00034973,4]
[322705708,1713228638729,-3740.74588478,0.00034974,4]
[322705710,1713228638739,-538.98088948,0.00034989,4]
[322705712,1713228638748,-277.45481034,0.00034989,4]
[322705714,1713228638757,-500.0,0.00034989,7]
[322705716,1713228638767,-500.0,0.00034989,7]
[322705718,1713228638777,-298.00359636,0.00034989,7]
[322705720,1713228638788,-8000.0,0.0003499,4]
[322705722,1713228638798,-3200.0,0.0003499,9]
[322705724,1713228638807,-154.79876161,0.00034993,4]
[322705726,1713228638817,-175.57059763,0.00034994,4]
[322705728,1713228638826,-2106.9724302,0.00034994,4]
[322705730,1713228638837,-155.53425428,0.00034994,4]
[322705732,1713228638846,-154.87609912,0.00034994,4]
[322705734,1713228638855,-234.35159784,0.00034994,4]
[322705736,1713228638866,-155.6710823,0.00034994,4]
[322705737,1713228638875,-1787.74073555,0.00034994,4]
[322705739,1713228638884,-563.33763702,0.00034994,4]
[322705742,1713228638894,-272.41852159,0.00034994,4]
[322705743,1713228638903,-193.30076871,0.00034994,4]
[322705745,1713228638915,-225.42052503,0.00034994,2]
[322705747,1713228638925,-157.42885592,0.00034994,4]
[322705749,1713228638934,-540.66248136,0.00034994,4]
[322705751,1713228638942,-345.66,0.00034994,4]
[322705753,1713228638952,-154.87609912,0.00034994,4]
[322705755,1713228638961,-203.12352967,0.00034994,4]
[322705757,1713228638970,-154.86128635,0.00034994,4]
[322705759,1713228638980,-309.6594025,0.00034995,4]
[322705761,1713228638989,-155.21019574,0.00034995,4]
[322705763,1713228638998,-15391.12143703,0.00034995,4]
[322705765,1713228639008,-1574.32701702,0.00034995,4]
[322705767,1713228639017,-71709.61357378,0.00034997,2]
[322705942,1713228640643,-8528.44458443,0.00034997,2]
[322705944,1713228640653,-11625.38,0.00034998,2]
[322705946,1713228640665,-10949.67887901,0.00034998,2]
[322705948,1713228640677,-675.70112099,0.00034998,2]
[322705950,1713228640686,-3482.0844751,0.00034998,2]
[322705953,1713228640697,-8143.2955249,0.00034998,2]
[322705955,1713228640706,-11625.38,0.00034998,2]
[322705957,1713228640715,-11625.38,0.00034998,2]
[322705959,1713228640725,-11625.38,0.00034998,2]
[322705961,1713228640733,-11625.38,0.00034998,2]
[322705963,1713228640743,-11625.38,0.00034998,2]
[322705965,1713228640751,-11625.38,0.00034998,2]
[322705967,1713228640760,-11625.38,0.00034998,2]
[322705969,1713228640769,-13845.53693518,0.00035,5]
[322705971,1713228640780,-596.97026302,0.00035,2]
[322705973,1713228640790,-4496.1202743,0.00035,4]
[322705975,1713228640800,-154.87609912,0.00035,4]
[322705976,1713228640809,-12729.13421738,0.00035,4]
[322705978,1713228640819,-19427.97241083,0.00035,30]
[322706225,1713228643371,-154.81422293,0.0003189,10]
[322706227,1713228643379,-21609.47225932,0.00035,30]
[322706230,1713228643392,-6784.85641917,0.00035,30]
[322706233,1713228643404,-16227.53889018,0.00035,30]
[322706235,1713228643415,-1120.79539491,0.00035,30]
[322706237,1713228643424,-1260.0,0.00035,30]
[322706530,1713228646283,-257.092,0.00032374,2]
[322706531,1713228646292,-15492.90800001,0.00035,30]
[322713993,1713228773819,500.0,0.00038708,40]
[322714002,1713228774095,500.0,0.00038708,40]
[322714029,1713228774376,500.0,0.00038708,40]
[322714058,1713228774630,500.0,0.00038708,40]
[322714085,1713228774886,500.0,0.00038708,40]
[322714116,1713228775165,500.0,0.00038708,40]
[322714151,1713228775492,500.0,0.00038708,40]
[322714174,1713228775753,500.0,0.00038708,40]
[322714209,1713228776077,500.0,0.00038708,40]
[322714254,1713228776604,483.52142212,0.00038708,40]
[322728533,1713228962198,500.0,0.00038678,40]
[322728540,1713229285648,500.0,0.00038691,40]
[322728541,1713229291169,500.0,0.00038691,40]
[322728542,1713229307699,508.84,0.00038691,40]
[322728544,1713229647103,-154.82968734,0.00022984,2]
[322728545,1713229647124,-205.79653889,0.00022985,2]
[322728546,1713229647144,-121.08255609,0.00022986,2]
[322728547,1713229694108,500.0,0.00038696,40]
[322728548,1713229694699,500.0,0.00038696,40]
[322728549,1713229695001,500.0,0.00038696,40]
[322728550,1713229695389,500.0,0.00038696,40]
[322728551,1713229749102,-1045.98347885,0.00022983,2]
[322728552,1713229749121,-147.53510098,0.00022986,2]
[322728592,1713229832464,-154.82968734,0.00022985,2]
[322728593,1713229832473,-156.98200501,0.00025,2]
[322728594,1713229832483,-119.9816292,0.00027397,2]
[322728595,1713229832494,-162.9766498,0.00027397,2]
[322728596,1713229832505,-172.68021,0.00027397,2]
[322728597,1713229832514,-166.666666,0.00028605,2]
[322728598,1713229832525,-168.779527,0.00028851,2]
[322728599,1713229832535,-56.88085293,0.00028951,2]
[322728643,1713229838601,-243.11914707,0.00028951,2]
[322728645,1713229838611,-300.0,0.00028951,2]
[322728648,1713229838621,-24900.0,0.00028952,2]
[322728649,1713229838630,-166.666666,0.00029385,2]
[322728652,1713229838640,-166.666666,0.00030165,2]
[322728655,1713229838649,-166.666666,0.00030945,2]
[322728658,1713229838659,-620.52783087,0.00031023,2]
[322728661,1713229838669,-306.0,0.00031096,2]
[322728663,1713229838678,-420.2716243,0.000311,2]
[322728665,1713229838687,-203.1366097,0.000311,2]
[322728667,1713229838696,-153.0,0.000311,2]
[322728669,1713229838705,-306.0,0.000311,2]
[322728671,1713229838714,-300.2619656,0.000311,2]
[322728673,1713229838723,-203.1366097,0.000311,2]
[322728675,1713229838731,-153.0,0.000311,2]
[322728677,1713229838740,-203.1366097,0.000311,2]
[322728679,1713229838749,-203.1366097,0.000311,2]
[322728681,1713229838758,-203.1366097,0.000311,2]
[322728683,1713229838767,-153.0,0.000311,2]
[322728685,1713229838778,-153.0,0.000311,2]
[322728687,1713229838787,-153.0,0.000311,2]
[322728689,1713229838797,-153.0,0.000311,2]
[322728691,1713229838806,-153.0,0.000311,2]
[322728693,1713229838815,-153.0,0.000312,2]
[322728695,1713229838832,-153.0,0.000312,2]
[322728697,1713229838841,-153.0,0.000312,2]
[322728699,1713229838850,-153.0,0.000312,2]
[322728701,1713229838859,-153.0,0.000312,2]
[322728703,1713229838868,-276.0,0.00031236,2]
[322728705,1713229838877,-3000.0,0.000315,4]
[322728707,1713229838886,-166.666666,0.00031725,2]
[322728709,1713229838895,-420.0,0.00031846,2]
[322728711,1713229838904,-154.82968734,0.0003189,10]
[322728713,1713229838913,-191.09643603,0.00032503,4]
[322728715,1713229838923,-166.666666,0.00032504,2]
[322728717,1713229838932,-620.02639154,0.00032574,2]
[322728719,1713229838942,-1210.66841003,0.00032728,3]
[322728721,1713229838951,-1200.0,0.00033,4]
[322728723,1713229838960,-164.0,0.00033,2]
[322728725,1713229838969,-242.83524798,0.00033108,3]
[322728727,1713229838978,-282.958279,0.00033165,2]
[322728729,1713229838987,-205.0,0.0003363,7]
[322728731,1713229838996,-32616.999999,0.000339,2]
[322728733,1713229839005,-465.39337493,0.00034,4]
[322728735,1713229839015,-2000.0,0.0003417,2]
[322728737,1713229839024,-3000.0,0.000342,2]
[322728739,1713229839033,-620.00131958,0.00034203,2]
[322728741,1713229839042,-150.83408251,0.00034204,2]
[322728743,1713229839051,-250.21564279,0.00034204,2]
[322728745,1713229839061,-3000.0,0.0003421,2]
[322728747,1713229839072,-3000.0,0.0003422,2]
[322728749,1713229839081,-3000.0,0.0003423,2]
[322728751,1713229839092,-3000.0,0.0003424,2]
[322728753,1713229839104,-3000.0,0.0003425,2]
[322728755,1713229839113,-3000.0,0.0003426,2]
[322728757,1713229839123,-3000.0,0.0003427,2]
[322728759,1713229839132,-362.8403058,0.0003427,2]
[322728761,1713229839143,-3000.0,0.0003428,2]
[322728763,1713229839152,-3000.0,0.0003429,2]
[322728765,1713229839161,-500.0,0.00034299,7]
[322728767,1713229839171,-500.0,0.00034299,7]
[322728769,1713229839181,-298.00359636,0.00034299,7]
[322728771,1713229839189,-3000.0,0.000343,2]
[322728773,1713229839198,-3000.0,0.0003431,2]
[322728774,1713229839207,-3000.0,0.0003432,2]
[322728777,1713229839217,-3000.0,0.0003433,2]
[322728778,1713229839227,-3000.0,0.0003434,2]
[322728780,1713229839236,-3000.0,0.0003435,2]
[322728783,1713229839245,-3000.0,0.0003436,2]
[322728784,1713229839255,-3000.0,0.0003437,2]
[322728787,1713229839265,-154.82971516,0.00034379,4]
[322728789,1713229839274,-3000.0,0.0003438,2]
[322728790,1713229839283,-3000.0,0.0003439,2]
[322728792,1713229839293,-3000.0,0.000344,2]
[322728794,1713229839302,-3000.0,0.0003441,2]
[322728796,1713229839311,-3000.0,0.0003442,2]
[322728798,1713229839322,-362.84030579,0.00034428,2]
[322728800,1713229839331,-3000.0,0.0003443,2]
[322728803,1713229839340,-3000.0,0.0003444,2]
[322728805,1713229839349,-3000.0,0.0003445,2]
[322728806,1713229839359,-8831.42689856,0.00034454,5]
[322728808,1713229839368,-3000.0,0.0003446,2]
[322728810,1713229839378,-3000.0,0.0003447,2]
[322728812,1713229839387,-3000.0,0.0003448,2]
[322728814,1713229839396,-404.21971349,0.00034487,2]
[322728816,1713229839405,-154.86128635,0.00034488,4]
[322728818,1713229839414,-155.53425428,0.00034488,4]
[322728820,1713229839423,-203.12352967,0.00034488,4]
[322728822,1713229839432,-154.87609912,0.00034488,4]
[322728824,1713229839442,-563.33763702,0.00034488,4]
[322728826,1713229839450,-154.87609912,0.00034488,4]
[322728828,1713229839460,-1787.74073555,0.00034488,4]
[322728830,1713229839470,-157.42885592,0.00034488,4]
[322728832,1713229839479,-155.6710823,0.00034488,4]
[322728834,1713229839488,-15391.12143703,0.00034488,4]
[322728836,1713229839498,-3740.74588478,0.00034488,4]
[322728838,1713229839507,-277.45481034,0.00034488,4]
[322728840,1713229839516,-6784.85641917,0.00034488,4]
[322728842,1713229839525,-8000.0,0.00034488,4]
[322728845,1713229839535,-538.98088948,0.00034488,4]
[322728847,1713229839544,-193.30076871,0.00034489,4]
[322728848,1713229839553,-2106.9724302,0.00034489,4]
[322728850,1713229839562,-38761.84806733,0.0003449,2]
[322730650,1713229858729,500.0,0.00038697,40]
[322731775,1713229911158,500.0,0.00038697,40]
[322731776,1713229915104,609.49,0.00038697,40]
[322731777,1713229918499,500.0,0.00038697,40]
[322731778,1713229923000,500.0,0.00038697,40]
[322731779,1713229933488,500.0,0.00038697,40]
[322731780,1713229946202,500.0,0.00038697,40]
[322731781,1713229946462,500.0,0.00038697,40]
[322731782,1713229946725,500.0,0.00038697,40]
[322731783,1713229947006,500.0,0.00038697,40]
[322731784,1713229947274,500.0,0.00038697,40]
[322731785,1713229947570,500.0,0.00038697,40]
[322731786,1713229947842,500.0,0.00038697,40]
[322731787,1713229948116,500.0,0.00038697,40]
[322731788,1713229948366,500.0,0.00038697,40]
[322731789,1713229948623,500.0,0.00038697,40]
[322731790,1713229948897,437.54,0.00038697,40]
[322731791,1713229954740,500.0,0.00038697,40]
[322731792,1713229956800,500.0,0.00038697,40]
[322731793,1713230001505,614.77,0.00038697,40]
[322731794,1713230027633,500.0,0.00038697,40]
[322731795,1713230028032,500.0,0.00038697,40]
[322731796,1713230028324,505.32,0.00038697,40]
[322731797,1713230035507,10000.0,0.000252,10]
[322731798,1713230043641,10000.0,0.000252,10]
[322731799,1713230053035,10000.0,0.000252,10]
[322731800,1713230055814,500.0,0.00038697,40]
[322731801,1713230061860,10000.0,0.000252,10]
[322731802,1713230065274,500.0,0.00038697,40]
[322731803,1713230074817,10000.0,0.000252,30]
[322731804,1713230090066,8399.09,0.000252,30]
[322731805,1713230097112,500.0,0.00038677,40]
[322731806,1713230103050,287.26270478,0.00038677,40]
[322731807,1713230123233,500.0,0.00038677,40]
[322731808,1713230127455,500.0,0.00038677,40]
[322731809,1713230129187,500.0,0.00038677,40]
[322731810,1713230129452,500.0,0.00038677,40]
[322731811,1713230230007,500.0,0.00038677,40]
[322731813,1713230331894,500.0,0.00038677,40]
[322731814,1713230372879,500.0,0.00038677,40]
[322731815,1713230414092,500.0,0.00038672,40]
[322731816,1713230414356,251.67,0.00038672,40]
[322731817,1713230484301,500.0,0.00038672,40]
[322731818,1713230484915,500.0,0.00038672,40]
[322731819,1713230485289,500.0,0.00038672,40]
[322731820,1713230485488,500.0,0.00038672,40]
[322731821,1713230489540,500.0,0.00038672,40]
[322731822,1713230507593,500.0,0.00038672,40]
[322731823,1713230515614,500.0,0.00038672,40]
[322731824,1713230521861,500.0,0.00038672,40]
[322731825,1713230555846,594.06,0.00038672,40]
[322731826,1713230581989,500.0,0.00038672,40]
[322731827,1713230582277,500.0,0.00038672,40]
[322731828,1713230629653,500.0,0.00038672,40]
[322731829,1713230630230,500.0,0.00038672,40]
[322731830,1713230630552,500.0,0.00038672,40]
[322731831,1713230630814,500.0,0.00038672,40]
[322731832,1713230631078,500.0,0.00038672,40]
[322731833,1713230631367,500.0,0.00038672,40]
[322731834,1713230631736,500.0,0.00038672,40]
[322731835,1713230631999,500.0,0.00038672,40]
[322731836,1713230632275,500.0,0.00038672,40]
[322731837,1713230632546,288.14,0.00038672,40]
[322731838,1713230661091,500.0,0.00038672,40]
[322731839,1713230723080,500.0,0.00038676,40]
[322731840,1713230750930,500.0,0.00038676,40]
[322731842,1713230832393,500.0,0.00038676,40]
[322731843,1713230832705,500.0,0.00038676,40]
[322731844,1713230832974,321.12,0.00038676,40]
[322731845,1713230846083,-538.98088948,0.0002609,2]
[322731846,1713230846111,-205.79653889,0.00026091,2]
[322731847,1713230846134,-300.0,0.00026099,2]
[322731848,1713230846156,-300.0,0.00026099,2]
[322731849,1713230846177,-306.7981587,0.000261,2]
[322731850,1713230846795,500.0,0.00038676,40]
[322731851,1713230856801,500.0,0.00038676,40]
[322731852,1713230860936,500.0,0.00038676,40]
[322731853,1713230861416,500.0,0.00038676,40]
[322731854,1713230861497,500.0,0.00038676,40]
[322731855,1713230861783,500.0,0.00038676,40]
[322731856,1713230862047,171.88,0.00038676,40]
[322731857,1713230870799,500.0,0.00038676,40]
[322731858,1713230871075,500.0,0.00038676,40]
[322731859,1713230871546,500.0,0.00038676,40]
[322731860,1713230872101,500.0,0.00038676,40]
[322731861,1713230872384,500.0,0.00038676,40]
[322731862,1713230872648,500.0,0.00038676,40]
[322731863,1713230873007,500.0,0.00038676,40]
[322731864,1713230873363,500.0,0.00038676,40]
[322731865,1713230873683,500.0,0.00038676,40]
[322731866,1713230873949,500.0,0.00038676,40]
[322731867,1713230874221,500.0,0.00038676,40]
[322731868,1713230874479,500.0,0.00038676,40]
[322731869,1713230874783,500.0,0.00038676,40]
[322731870,1713230875127,500.0,0.00038676,40]
[322731871,1713230875386,430.81,0.00038676,40]
[322731873,1713230892294,500.0,0.00038676,40]
[322731874,1713230892593,500.0,0.00038676,40]
[322731875,1713230892859,500.0,0.00038676,40]
[322731876,1713230893135,280.46,0.00038676,40]
[322731878,1713230912442,500.0,0.00038676,40]
[322731879,1713230914762,534.9,0.00038676,40]
[322731880,1713230915067,534.9,0.00038676,40]
[322731881,1713230915663,534.9,0.00038676,40]
[322731882,1713230915940,534.9,0.00038676,40]
[322731883,1713230916196,534.9,0.00038676,40]
[322731884,1713230916470,534.9,0.00038676,40]
[322731885,1713230916765,534.9,0.00038676,40]
[322731886,1713230917062,534.9,0.00038676,40]
[322731887,1713230917358,534.9,0.00038676,40]
[322731888,1713230917612,534.9,0.00038676,40]
[322731889,1713230917936,534.9,0.00038676,40]
[322731890,1713230918212,534.9,0.00038676,40]
[322731891,1713230918305,500.0,0.00038676,40]
[322731892,1713230918481,534.9,0.00038676,40]
[322731893,1713230918532,500.0,0.00038676,40]
[322731894,1713230920360,534.9,0.00038676,40]
[322731895,1713230920434,534.9,0.00038676,40]
[322731896,1713230920701,534.9,0.00038676,40]
[322731897,1713230920966,534.9,0.00038676,40]
[322731898,1713230921232,534.9,0.00038676,40]
[322731899,1713230921520,534.9,0.00038676,40]
[322731900,1713230921811,534.9,0.00038676,40]
[322731901,1713230922069,534.9,0.00038676,40]
[322731902,1713230922348,534.9,0.00038676,40]
[322731903,1713230922675,534.9,0.00038676,40]
[322731904,1713230922871,534.94,0.00038676,40]
[322731905,1713230929446,593.99,0.00038676,40]
[322731906,1713230936630,500.0,0.00038676,40]
[322731909,1713230959550,500.0,0.00038676,40]
[322731910,1713230959836,500.0,0.00038676,40]
[322731911,1713230960131,500.0,0.00038676,40]
[322731912,1713230960757,500.0,0.00038676,40]
[322731913,1713230961398,410.27,0.00038676,40]
[322731914,1713230963589,500.0,0.00038676,40]
[322731915,1713230963930,310.58,0.00038676,40]
[322731916,1713230969887,500.0,0.00038676,40]
[322731917,1713230975199,500.0,0.00038676,40]
[322731918,1713230975496,500.0,0.00038676,40]
[322731919,1713230975769,500.0,0.00038676,40]
[322731920,1713230976032,500.0,0.00038676,40]
[322731921,1713230976299,500.0,0.00038676,40]
[322731922,1713230976598,500.0,0.00038676,40]
[322731923,1713230976898,446.38,0.00038676,40]
[322731924,1713230984628,500.0,0.00038676,40]
[322731925,1713230985226,508.84,0.00038676,40]
[322731926,1713230987478,500.0,0.00038676,40]
[322731927,1713230993061,500.0,0.00038695,40]
[322731928,1713230993352,153.29,0.00038695,40]
[322731929,1713230996367,500.0,0.00038695,40]
[322731930,1713230996637,500.0,0.00038695,40]
[322731931,1713230996905,500.0,0.00038695,40]
[322731932,1713230997067,500.0,0.00038695,40]